bitfinex/quotes_ETHUSD_20251120
["timestamp","ask_amount","ask_price","bid_price","bid_amount"]
[1763631977462,5.71620098,3011.5,3011.4,0.001]
[1763631977669,6.02160802,3011.5,3011.4,0.001]
[1763631977826,6.71356295,3011.5,3011.4,0.001]
[1763631979823,5.71620098,3011.5,3011.4,0.001]
[1763631980030,5.31069698,3011.5,3011.4,0.001]
[1763631980266,5.71620098,3011.5,3011.4,0.001]
[1763631980637,11.75541339,3011.5,3011.1,0.001]
[1763631980837,0.0089,3011.2,3011.1,0.001]
[1763631981248,4.22083917,3011.2,3011.1,0.001]
[1763631981455,4.67683917,3011.2,3011.1,0.001]
[1763631981973,5.58383181,3011.2,3011.1,0.001]
[1763631982774,6.62703107,3011.2,3011.1,0.001]
[1763631982978,6.59002545,3011.2,3011.1,0.001]
[1763631984369,6.58922545,3011.2,3011.1,0.001]
[1763631984774,6.58922545,3011.2,3010.7,0.001]
[1763631984775,2.27789664,3011.1,3010.7,0.001]
[1763631984936,8.59522685,3010.8,3010.7,0.001]
[1763631985137,8.72586792,3010.8,3010.7,0.001]
[1763631985472,1.31249664,3010.0,3008.3,0.456]
[1763631985775,1.31249664,3010.0,3007.9,0.1952]
[1763631985776,0.405504,3009.8,3008.4,0.456]
[1763631986236,0.4855,3009.7,3008.4,0.456]
[1763631986598,0.4515,3008.2,3008.1,0.41659264]
[1763631986795,0.405504,3009.6,3005.1,4.13608828]
[1763631986796,0.1413,3006.4,3005.1,4.13608828]
[1763631987072,0.1413,3006.4,3002.2,5.92441661]
[1763631987073,1.31249664,3005.1,3002.2,5.92441661]
[1763631987301,0.90699264,3004.6,3002.4,0.456]
[1763631987438,4.373455,3005.6,3002.4,0.456]
[1763631987439,3.32701201,3005.7,3002.6,10.790224]
[1763631987799,2.35588175,3004.6,3004.5,0.1904]
[1763631987971,2.35588175,3004.6,3004.5,0.6707]
[1763631987972,0.69354999,3004.6,3004.5,0.6707]
[1763631988451,0.69354999,3004.6,3004.4,0.3074]
[1763631988633,4.13213211,3005.3,3004.4,0.1904]
[1763631988634,0.69354999,3004.5,3004.4,0.1904]
[1763631988839,0.69354999,3004.5,3004.2,0.1904]
[1763631989080,0.69354999,3004.4,3004.2,0.1904]
[1763631989238,2.99774112,3004.3,3004.2,0.1904]
[1763631989439,2.99263597,3004.3,3004.2,0.3074]
[1763631989656,0.69354999,3004.3,3004.2,8.15418483]
[1763631989843,2.41804611,3004.3,3004.2,8.27118483]
[1763631990039,2.41804611,3004.3,3004.2,4.82551164]
[1763631990245,2.41808348,3004.3,3004.2,0.1904]
[1763631990453,2.29645436,3004.7,3004.3,3.555807]
[1763631990682,2.95152293,3005.1,3004.6,0.1904]
[1763631990867,1.72231701,3004.7,3004.6,0.1904]
[1763631991070,0.405504,3005.4,3004.6,0.1904]
[1763631991269,2.95152293,3005.2,3004.6,0.1904]
[1763631991459,2.95152293,3004.9,3004.6,0.6707]
[1763631991884,2.95152293,3004.9,3004.7,0.4803]
[1763631992080,2.95152293,3005.1,3004.7,0.4803]
[1763631992280,4.13213211,3005.6,3004.8,0.118]
[1763631992281,2.95152293,3005.0,3004.8,0.118]
[1763631992491,4.13213211,3005.1,3004.8,0.118]
[1763631992790,4.13213211,3005.1,3004.4,0.4803]
[1763631993093,2.86296536,3005.2,3004.5,0.118]
[1763631993249,2.86296536,3005.2,3004.4,0.4803]
[1763631993449,2.86296536,3005.1,3004.5,0.118]
[1763631993689,2.86296536,3005.2,3004.6,0.118]
[1763631994562,2.86296536,3005.2,3004.7,0.118]
[1763631995100,2.86296536,3005.3,3004.7,0.118]
[1763631995257,2.86296536,3005.3,3004.4,0.4803]
[1763631995258,3.73306955,3005.2,3004.4,0.4803]
[1763631995458,3.76026936,3005.2,3004.2,0.1904]
[1763631995694,1.71429594,3004.4,3004.2,10.18374783]
[1763631995991,0.85717338,3004.5,3004.2,7.78267028]
[1763631996289,0.85717338,3004.5,3004.3,0.4803]
[1763631996494,0.85717338,3004.5,3004.4,0.4686]
[1763631996693,0.85717338,3004.8,3004.5,3.04799264]
[1763631996880,0.85717338,3005.3,3004.6,1.0669]
[1763631997062,0.85717338,3005.3,3004.7,0.9489]
[1763631997264,0.85717338,3005.2,3004.7,0.4686]
[1763631997464,0.85717338,3005.1,3004.8,0.118]
[1763631997696,0.85717338,3005.0,3004.8,0.118]
[1763631997881,0.85717338,3005.0,3004.3,0.4803]
[1763631998082,0.85717338,3005.1,3004.3,0.4823]
[1763631998381,0.85717338,3005.1,3004.4,0.118]
[1763631998790,0.85717338,3005.1,3004.5,0.6003]
[1763631998991,0.85717338,3005.2,3004.5,0.4823]
[1763631999193,4.18474091,3005.2,3004.5,0.4823]
[1763631999392,0.85717338,3005.1,3004.5,0.4823]
[1763631999584,0.85717338,3005.2,3004.5,0.4823]
[1763631999991,0.85717338,3005.2,3004.6,0.001]
[1763631999992,3.32759794,3005.2,3004.6,0.001]
[1763632000188,3.32959794,3005.2,3004.6,0.001]
[1763632000382,4.18677132,3005.2,3004.6,0.001]
[1763632000575,0.002,3005.2,3004.6,0.001]
[1763632000776,0.002,3005.2,3004.6,0.90799264]
[1763632000978,0.002,3005.2,3004.7,0.117]
[1763632001177,0.002,3005.2,3004.7,0.5993]
[1763632001407,0.002,3005.2,3004.6,0.001]
[1763632001607,0.002,3005.2,3004.8,0.4823]
[1763632001916,0.002,3005.2,3005.1,0.4864]
[1763632002091,0.002,3005.2,3004.6,0.001]
[1763632002269,0.002,3005.2,3004.9,0.117]
[1763632002470,0.002,3005.2,3005.1,0.4864]
[1763632002675,0.002,3005.2,3004.9,0.117]
[1763632003285,0.002,3005.2,3004.6,0.001]
[1763632003478,0.002,3005.2,3004.7,0.117]
[1763632004311,0.4786,3005.1,3004.6,0.001]
[1763632004605,0.03700562,3005.0,3004.6,0.001]
[1763632004978,0.002,3005.2,3004.7,0.117]
[1763632005381,0.002,3005.2,3004.7,0.5993]
[1763632005792,0.4806,3005.2,3004.6,0.001]
[1763632005990,0.4806,3005.2,3004.6,0.118]
[1763632006404,0.3527,3004.7,3004.6,0.001]
[1763632006608,0.5467,3004.7,3004.6,0.001]
[1763632007108,0.3527,3004.7,3004.6,0.001]
[1763632007313,1.92554714,3004.7,3004.6,0.001]
[1763632007620,1.89981652,3004.7,3004.6,0.001]
[1763632007781,1.04264314,3004.7,3004.6,0.001]
[1763632007984,1.04264314,3004.7,3001.8,0.13325271]
[1763632007985,11.84430095,3004.7,3001.8,0.13325271]
[1763632008177,11.84430095,3004.7,3001.7,0.1852]
[1763632008178,0.86290806,3003.4,3001.9,0.4823]
[1763632008483,0.405504,3003.2,3001.9,0.4823]
[1763632008813,0.68994314,3003.1,3001.9,6.68727764]
[1763632009018,0.68994314,3003.1,3001.4,3.33170641]
[1763632009019,0.2031,3002.0,3001.3,0.1852]
[1763632009179,0.194,3001.1,3000.1,0.03333222]
[1763632009379,0.405504,3000.9,3000.1,0.6479]
[1763632009606,0.405504,3000.9,2998.3,1.0003251]
[1763632009607,1.05690806,3000.9,2999.8,0.03333555]
[1763632009806,0.405504,3001.3,3000.3,2.29669]
[1763632010016,0.86290806,3001.7,3000.5,5.344365]
[1763632010221,0.69004825,3001.6,3001.2,0.1852]
[1763632010418,0.6126,3002.0,2999.6,0.05]
[1763632010747,0.6126,3002.0,2998.1,0.1852]
[1763632010748,1.15012323,3000.1,2999.4,2.748281]
[1763632010907,0.86259242,3000.4,2999.2,6.39017764]
[1763632011077,0.86259242,3000.4,2998.0,4.00544617]
[1763632011078,0.86259242,3001.1,2998.7,0.01300248]
[1763632011278,0.69028542,3001.0,2999.3,3.180478]
[1763632011616,0.69028542,3001.0,2998.8,1.02141021]
[1763632011617,0.09999999,3001.2,3000.9,3.51959]
[1763632011821,0.09999999,3001.2,2999.4,1.03437802]
[1763632011822,0.09999999,3000.2,2995.7,1.64845384]
[1763632012005,0.09999999,3001.1,3000.7,0.1664]
[1763632012186,0.09999999,3001.9,3000.9,0.90699264]
[1763632012378,0.86259242,3002.2,3000.7,0.1664]
[1763632012379,0.09999999,3001.4,3001.0,0.01292943]
[1763632012582,1.15012323,3002.4,3001.3,0.90699264]
[1763632012583,0.6913248,3002.1,3001.3,0.90699264]
[1763632012784,0.6913248,3002.3,3001.5,0.90699264]
[1763632012983,0.69147894,3002.5,3001.6,0.128]
[1763632013315,0.96259241,3003.5,3002.5,0.1664]
[1763632013508,0.69276107,3003.4,3002.9,3.33011422]
[1763632013712,0.09999999,3004.0,3003.0,0.128]
[1763632013889,0.09999999,3004.4,3003.9,0.1664]
[1763632014083,0.4806,3005.2,3003.9,0.1664]
[1763632014084,0.09999999,3004.3,3003.9,0.1664]
[1763632014323,0.09999999,3004.6,3004.0,0.128]
[1763632014524,0.09999999,3003.7,3003.2,0.1664]
[1763632014680,0.86259242,3004.4,3003.2,0.1664]
[1763632014681,0.09999999,3003.3,3003.2,0.1664]
[1763632015117,0.86259242,3004.4,3003.2,0.6487]
[1763632015416,0.69460495,3004.3,3003.2,0.6487]
[1763632015719,0.09999999,3003.7,3003.3,1.03499264]
[1763632015920,0.00640002,3003.6,3003.3,0.128]
[1763632016117,0.00640002,3003.6,3003.4,2.309512]
[1763632016416,0.00640002,3003.6,3003.4,0.4823]
[1763632016619,0.00640002,3003.6,3003.5,0.128]
[1763632016819,0.09999999,3003.3,3003.2,0.2944]
[1763632017309,0.10640001,3003.6,3003.4,0.90699264]
[1763632017532,0.00640002,3003.6,3003.5,4.56712264]
[1763632017734,0.00640002,3003.6,3003.5,1.38929264]
[1763632017936,0.00640002,3003.6,3003.2,1.55569264]
[1763632018123,0.00640002,3003.6,3003.5,3.33728]
[1763632018324,0.00640002,3003.6,3003.5,2.91303]
[1763632018526,0.10640001,3003.6,3003.5,0.4823]
[1763632018725,0.10640001,3003.6,3003.5,4.52019964]
[1763632019051,0.10640001,3003.6,3003.5,1.38929264]
[1763632019546,0.10640001,3003.6,3003.5,0.90699264]
[1763632019851,0.09999999,3003.1,3002.6,3.238246]
[1763632020048,0.09999999,3003.1,3002.7,0.128]
[1763632020049,0.00640002,3003.0,3002.7,0.128]
[1763632020214,0.00640002,3003.0,3002.8,0.0128877]
[1763632020417,0.00640002,3003.0,3002.7,0.4823]
[1763632020714,0.00640002,3003.0,3002.8,0.4951877]
[1763632020943,0.00640002,3003.0,3002.9,4.51952364]
[1763632021278,0.00640002,3003.0,3002.9,3.53250864]
[1763632021448,0.00640002,3003.0,3002.9,3.26550864]
[1763632021649,0.00640002,3003.0,3002.9,7.48342686]
[1763632021857,0.09999999,3003.9,3003.0,0.90699264]
[1763632022016,0.09999999,3003.9,3003.3,1.31249664]
[1763632022216,0.09999999,3003.9,3003.4,0.1664]
[1763632022648,0.09999999,3003.1,3002.5,0.6487]
[1763632022964,0.09999999,3003.3,3002.6,0.01288973]
[1763632023170,0.002,3004.1,3003.2,0.1664]
[1763632023336,0.002,3004.1,3003.5,1.31249664]
[1763632023664,0.002,3004.1,3003.2,0.1664]
[1763632023665,0.002,3004.1,3003.7,2.19213]
[1763632023834,0.002,3004.1,3004.0,0.405504]
[1763632024032,0.002,3004.1,3004.0,1.31249664]
[1763632024251,0.002,3004.1,3004.0,1.79479664]
[1763632024432,0.002,3004.1,3004.0,1.38929264]
[1763632025263,0.002,3004.1,3004.0,0.90699264]
[1763632025768,0.002,3004.1,3004.0,4.23588744]
[1763632026058,0.002,3004.1,3004.0,0.90699264]
[1763632026260,0.002,3004.1,3004.0,4.23588744]
[1763632026567,0.002,3004.1,3004.0,4.71818744]
[1763632027973,0.002,3004.1,3004.0,14.61036288]
[1763632028133,0.002,3004.1,3004.0,11.86402144]
[1763632028648,0.002,3004.5,3004.0,11.86402144]
[1763632028649,0.002,3004.5,3004.3,0.405504]
[1763632028861,0.002,3004.5,3004.4,12.54875064]
[1763632029032,0.002,3004.5,3004.4,10.38842564]
[1763632029234,0.002,3004.5,3004.4,6.59508164]
[1763632029546,0.002,3004.5,3004.4,1.53659264]
[1763632029871,0.002,3004.5,3004.4,6.90787324]
[1763632030034,0.002,3004.5,3004.4,4.86504424]
[1763632030233,0.002,3004.5,3004.4,4.85649347]
[1763632030460,0.002,3004.5,3004.4,7.73545247]
[1763632030960,0.002,3004.5,3004.4,1.06484187]
[1763632031160,0.002,3004.5,3004.4,4.39329347]
[1763632031660,0.002,3004.5,3004.4,4.40613683]
[1763632031963,0.002,3004.5,3004.4,8.46241683]
[1763632032168,0.0012,3004.5,3004.4,8.44957347]
[1763632032612,0.0012,3004.5,3004.4,12.98873447]
[1763632032885,0.0012,3004.5,3004.4,8.62022147]
[1763632033102,0.0012,3004.5,3004.4,9.02572547]
[1763632033598,0.0012,3004.5,3004.4,4.16249187]
[1763632033779,0.0012,3004.5,3004.4,1.06484187]
[1763632034653,0.0012,3004.5,3004.0,0.3]
[1763632034654,0.10119999,3004.5,3004.2,0.1578]
[1763632034854,0.10119999,3004.5,3004.2,1.06479264]
[1763632035258,0.10119999,3004.5,3004.0,0.3]
[1763632035587,0.10119999,3004.5,3004.1,0.01284933]
[1763632035803,0.09999999,3004.2,3004.1,0.1578]
[1763632036468,0.09999999,3004.2,3004.1,3.48658399]
[1763632036789,0.09999999,3004.4,3004.1,1.07764431]
[1763632036966,0.09999999,3004.2,3004.1,4.39357663]
[1763632038396,0.02033389,3004.2,3004.1,4.79908063]
[1763632038591,0.0012,3004.5,3004.4,4.82652764]
[1763632038965,0.0012,3004.5,3004.4,5.28972764]
[1763632039180,0.002,3004.9,3004.5,1.31249664]
[1763632039378,0.002,3005.6,3004.6,0.4632]
[1763632039580,0.002,3005.6,3004.8,3.01409764]
[1763632039885,0.002,3005.6,3005.1,4.20933864]
[1763632040055,0.002,3005.6,3005.1,3.85184164]
[1763632040254,0.002,3005.6,3005.1,4.72054564]
[1763632041065,0.002,3005.6,3005.1,10.81076964]
[1763632041284,0.002,3005.6,3005.1,8.88754764]
[1763632041482,0.002,3005.6,3005.1,9.34674764]
[1763632041687,0.002,3005.6,3005.1,9.47274764]
[1763632041988,0.002,3005.6,3005.1,16.79842992]
[1763632042393,0.002,3005.6,3005.3,23.093214]
[1763632042611,0.002,3005.6,3005.5,15.27769264]
[1763632042975,0.002,3005.9,3005.5,15.27769264]
[1763632042976,0.002,3005.9,3005.7,0.405504]
[1763632043311,0.002,3005.9,3005.8,10.80948964]
[1763632043685,0.002,3005.9,3005.8,11.27268964]
[1763632043892,0.002,3005.9,3005.8,14.59959096]
[1763632044216,0.002,3005.9,3005.8,8.71742396]
[1763632044794,0.002,3005.9,3005.8,9.92186766]
[1763632045016,0.002,3005.9,3005.8,2.97614034]
[1763632045174,0.002,3005.9,3005.8,9.39422766]
[1763632045374,0.002,3005.9,3005.8,9.26822766]
[1763632045591,0.002,3005.9,3005.8,9.39422766]
[1763632045926,0.002,3005.9,3005.8,10.09751066]
[1763632046086,0.002,3005.9,3005.8,7.28906696]
[1763632046286,0.002,3005.9,3005.8,11.18098896]
[1763632046513,0.002,3005.9,3005.8,8.06358696]
[1763632046712,0.002,3005.9,3005.8,8.18958696]
[1763632047125,0.002,3005.9,3005.8,7.09602596]
[1763632047431,0.002,3005.9,3005.8,6.97552096]
[1763632047580,0.002,3005.9,3005.8,4.81909396]
[1763632047784,0.002,3005.9,3005.8,9.17406953]
[1763632048013,0.002,3005.9,3005.8,6.50600853]
[1763632048224,0.002,3005.9,3005.8,4.69309396]
[1763632048430,0.002,3005.9,3005.8,4.81909396]
[1763632048887,0.002,3005.9,3005.1,0.4668]
[1763632049220,0.002,3005.9,3005.2,0.126]
[1763632049426,0.002,3005.9,3005.3,13.106258]
[1763632049597,0.00104,3005.9,3005.5,6.778973]
[1763632049796,0.00104,3005.9,3005.8,0.90699264]
[1763632049998,0.00104,3005.9,3005.8,0.01280461]
[1763632050210,0.00104,3005.9,3005.8,0.90699264]
[1763632050386,0.00104,3005.9,3005.8,1.03199264]
[1763632050591,0.00104,3005.9,3005.8,4.35889396]
[1763632051212,1.15794,3005.9,3004.6,3.32823004]
[1763632051430,0.4946,3005.8,3004.8,2.972685]
[1763632051722,0.4946,3005.8,3004.9,0.90699264]
[1763632051929,0.4946,3005.8,3005.1,0.90699264]
[1763632052087,0.4946,3005.8,3005.2,0.125]
[1763632052283,0.00104,3005.9,3005.4,0.90699264]
[1763632052513,0.00104,3005.9,3005.3,0.405504]
[1763632052925,0.00104,3005.9,3005.4,0.125]
[1763632053482,0.00104,3005.9,3005.1,0.90699264]
[1763632053698,0.00104,3005.9,3005.3,0.90699264]
[1763632053906,0.00104,3005.9,3005.4,0.90699264]
[1763632054839,0.00104,3005.9,3005.5,0.125]
[1763632055398,0.49564,3005.9,3005.2,3.3275365]
[1763632055716,0.002,3005.8,3005.4,2.598674]
[1763632056021,0.002,3005.8,3005.5,3.3272334]
[1763632056209,0.0012,3005.8,3005.5,0.90699264]
[1763632056415,0.0012,3005.8,3005.6,0.125]
[1763632056716,0.0012,3005.8,3005.7,0.125]
[1763632058102,0.9247,3005.8,3005.7,0.125]
[1763632058500,0.9247,3005.8,3004.9,3.32789776]
[1763632058854,0.9247,3005.8,3005.0,1.43749664]
[1763632058855,0.3596,3005.6,3005.0,1.43749664]
[1763632059032,0.3596,3005.6,3004.8,3.32791914]
[1763632059336,0.4512,3005.5,3004.9,0.125]
[1763632059546,0.4512,3005.5,3004.6,0.001]
[1763632059855,0.1935,3004.7,3004.6,0.001]
[1763632059996,0.6928,3004.7,3004.6,0.126]
[1763632060309,0.4993,3004.7,3004.6,0.126]
[1763632060503,0.1935,3005.3,3004.7,0.90699264]
[1763632060504,0.6447,3005.3,3004.7,0.90699264]
[1763632060724,0.6447,3005.3,3004.9,0.90699264]
[1763632060725,0.1935,3005.3,3004.9,0.90699264]
[1763632060945,0.1935,3005.3,3004.7,0.90699264]
[1763632061301,0.1935,3005.3,3004.8,0.125]
[1763632061302,0.6447,3005.3,3004.8,0.125]
[1763632061514,0.6447,3005.3,3004.9,0.125]
[1763632061698,0.1935,3005.3,3004.9,0.125]
[1763632061910,0.4512,3005.2,3005.0,0.124]
[1763632062113,0.4512,3005.2,3004.7,0.90699264]
[1763632062114,0.4993,3005.1,3004.8,0.90699264]
[1763632062325,0.528,3004.9,3004.7,0.90699264]
[1763632062502,0.528,3004.9,3004.8,0.124]
[1763632062723,0.9792,3004.9,3004.6,0.001]
[1763632062925,0.4977,3004.7,3004.6,0.001]
[1763632063155,0.4977,3004.7,3004.6,0.125]
[1763632063322,0.1935,3004.9,3004.6,0.125]
[1763632063640,0.6447,3004.9,3004.6,0.125]
[1763632063845,0.6447,3004.9,3004.6,0.001]
[1763632064149,0.6447,3004.9,3004.7,0.124]
[1763632064332,0.1935,3004.9,3004.7,0.124]
[1763632064845,0.6447,3005.3,3004.7,0.124]
[1763632064846,0.6447,3005.3,3004.8,0.90699264]
[1763632065149,0.6447,3005.3,3004.7,4.3590449]
[1763632065349,0.6447,3005.3,3004.7,4.2350449]
[1763632065646,0.6447,3005.3,3004.8,0.124]
[1763632066026,0.4512,3005.2,3004.8,0.124]
[1763632066220,0.4512,3005.2,3004.9,0.124]
[1763632066426,0.4512,3005.7,3004.9,0.124]
[1763632066633,0.1935,3005.6,3004.9,0.124]
[1763632067853,0.1935,3005.6,3005.0,0.405504]
[1763632068225,0.1935,3005.6,3005.1,6.65535256]
[1763632068833,0.1935,3005.6,3005.2,0.90699264]
[1763632069352,0.0012,3005.8,3005.2,0.90699264]
[1763632070625,0.0012,3005.8,3005.4,0.90699264]
[1763632071341,0.4524,3005.8,3005.5,0.124]
[1763632071546,0.4993,3005.6,3005.3,0.90699264]
[1763632071730,0.4993,3005.6,3005.4,0.124]
[1763632072129,0.0012,3005.8,3005.5,0.124]
[1763632072746,0.0012,3005.8,3005.7,0.90699264]
[1763632073072,0.0012,3005.8,3005.5,4.35818028]
[1763632073356,0.0012,3005.8,3005.5,7.68541368]
[1763632074844,0.0012,3005.8,3005.5,4.35818028]
[1763632075043,0.4524,3005.8,3005.5,4.35818028]
[1763632075335,0.4524,3005.8,3005.3,0.90699264]
[1763632075526,0.4524,3005.8,3005.4,0.123]
[1763632075731,0.4524,3005.8,3005.5,0.123]
[1763632075930,0.4524,3005.8,3005.6,0.123]
[1763632076430,0.4993,3005.7,3005.6,0.123]
[1763632076953,0.9505,3005.7,3005.6,0.123]
[1763632077880,0.9505,3005.7,3005.5,0.90699264]
[1763632078066,0.3345,3005.6,3005.5,0.90699264]
[1763632078269,0.7857,3005.6,3005.5,0.123]
[1763632078446,0.7857,3005.6,3005.1,0.001]
[1763632078776,0.4512,3005.5,3005.1,0.001]
[1763632079074,0.4977,3005.2,3005.1,0.001]
[1763632079242,0.4512,3005.5,3005.1,0.124]
[1763632079876,0.4512,3005.5,3005.1,0.001]
[1763632080075,0.4512,3005.5,3005.2,0.123]
[1763632080382,0.4504,3005.5,3005.2,0.123]
[1763632080553,0.4504,3005.5,3005.3,0.123]
[1763632080982,0.4993,3005.4,3005.3,0.123]
[1763632081401,0.4993,3005.4,3005.1,4.23563237]
[1763632081545,0.4993,3005.4,3005.3,0.123]
[1763632081745,0.4993,3005.4,3005.1,0.001]
[1763632081746,0.4993,3005.2,3005.1,0.001]
[1763632082251,0.9505,3005.2,3005.1,0.001]
[1763632082783,0.9505,3005.2,3004.8,0.001]
[1763632082784,6.65535256,3005.1,3004.8,0.001]
[1763632083077,0.5255,3004.9,3004.8,0.001]
[1763632083675,0.9767,3004.9,3004.8,0.001]
[1763632083878,0.5255,3004.9,3004.8,0.001]
[1763632084081,0.1935,3005.3,3004.8,0.001]
[1763632084671,0.6447,3005.3,3004.8,0.001]
[1763632084890,0.4512,3005.7,3004.8,0.001]
[1763632085051,0.4512,3005.7,3004.8,0.4837]
[1763632085257,0.0012,3005.8,3004.9,0.405504]
[1763632085457,0.0012,3005.8,3005.0,0.01281972]
[1763632085686,0.0012,3005.8,3005.0,1.74780578]
[1763632085888,0.0012,3005.8,3005.2,0.90699264]
[1763632086188,0.0012,3005.8,3005.3,0.13581493]
[1763632086556,0.0012,3005.8,3005.3,0.61851493]
[1763632087410,0.0012,3005.8,3005.7,0.4653]
[1763632087555,0.0012,3005.8,3005.7,10.75252201]
[1763632087760,0.0012,3005.8,3005.7,10.26520264]
[1763632087985,0.0012,3005.8,3005.7,11.2917229]
[1763632088262,0.0012,3005.8,3005.7,2.3390169]
[1763632088600,0.0012,3005.8,3005.7,1.39139264]
[1763632088801,0.0012,3005.8,3005.7,1.51339264]
[1763632089247,0.0012,3005.8,3005.7,1.97729264]
[1763632089398,0.0012,3005.8,3005.7,4.84040465]
[1763632090628,0.0012,3005.8,3005.7,4.73121202]
[1763632090832,0.0012,3005.8,3005.7,4.35600465]
[1763632091030,0.0012,3005.8,3005.7,4.23400465]
[1763632091194,0.0012,3005.8,3005.7,4.35600465]
[1763632091393,0.0012,3005.8,3005.7,4.84040465]
[1763632091800,0.0012,3005.8,3005.7,4.85321202]
[1763632092000,0.0012,3005.8,3005.7,4.84040465]
[1763632093509,0.0012,3005.8,3005.7,5.24590865]
[1763632093712,0.0012,3005.8,3005.7,4.35600465]
[1763632094233,0.0012,3005.8,3005.7,4.23400465]
[1763632094435,0.4791,3005.8,3005.7,0.90699264]
[1763632094643,0.9592,3005.8,3005.7,1.02899264]
[1763632095099,0.9592,3005.8,3005.7,4.35600465]
[1763632095299,0.9592,3005.8,3005.7,0.122]
[1763632095501,0.9592,3005.8,3005.1,6.65535256]
[1763632095710,0.4779,3005.2,3005.1,3.32767628]
[1763632095929,0.4779,3005.2,3005.1,3.44967628]
[1763632096244,0.0012,3005.8,3005.1,7.26175256]
[1763632096654,0.0012,3005.8,3005.4,0.90699264]
[1763632096824,0.0012,3005.8,3005.4,1.58784417]
[1763632097026,0.0012,3005.8,3005.4,1.14475153]
[1763632097247,0.0012,3005.8,3005.4,0.4639]
[1763632097442,0.0012,3005.8,3005.6,0.90699264]
[1763632097958,0.0012,3005.8,3005.7,0.122]
[1763632098655,0.0012,3005.8,3005.6,0.90699264]
[1763632098966,0.0012,3005.8,3005.7,0.122]
[1763632099739,0.0012,3005.8,3005.7,4.84040465]
[1763632099936,0.0012,3005.8,3005.7,5.65715698]
[1763632100678,0.0012,3005.8,3005.7,4.35600465]
[1763632100826,0.0012,3005.8,3005.7,4.35500465]
[1763632101238,0.0012,3005.8,3005.7,4.23400465]
[1763632101427,0.0012,3005.8,3005.7,4.35500465]
[1763632103068,0.0012,3005.8,3005.7,11.66230402]
[1763632103238,0.0012,3005.8,3005.7,11.64949665]
[1763632103667,0.0012,3005.8,3005.7,13.76938882]
[1763632104287,0.0004,3005.8,3005.7,17.65914282]
[1763632104461,0.0004,3005.8,3005.7,15.34852682]
[1763632105381,0.0004,3005.8,3005.7,15.11414482]
[1763632105591,0.0004,3005.8,3005.7,6.35389682]
[1763632105751,0.4783,3005.8,3005.7,5.88990801]
[1763632105945,0.9584,3005.8,3005.7,4.35500465]
[1763632106183,0.4783,3005.8,3005.7,4.35500465]
[1763632107078,0.9584,3005.8,3005.7,0.90699264]
[1763632107384,0.9584,3005.8,3005.7,4.35500465]
[1763632107581,0.9584,3005.8,3005.1,3.32767628]
[1763632107802,0.3167,3005.6,3005.2,0.121]
[1763632108087,0.3167,3005.6,3005.4,0.90699264]
[1763632108377,0.4743,3005.5,3005.4,0.90699264]
[1763632108678,0.0004,3005.8,3005.4,1.02799264]
[1763632108977,0.4701,3005.5,3005.4,1.02799264]
[1763632109478,0.4743,3005.7,3005.4,1.02799264]
[1763632109687,0.0004,3005.8,3005.4,1.02799264]
[1763632109870,0.0004,3005.8,3005.6,0.90699264]
[1763632110072,0.4747,3005.8,3005.6,0.90699264]
[1763632110269,0.4701,3005.7,3005.6,0.90699264]
[1763632110677,0.9444,3005.7,3005.6,0.90699264]
[1763632111702,0.0004,3005.8,3005.6,0.90699264]
[1763632111901,0.0004,3005.8,3005.7,4.23400465]
[1763632112208,0.18218,3005.9,3005.8,0.90699264]
[1763632112789,0.00048,3005.9,3005.8,0.90699264]
[1763632113008,0.00048,3005.9,3005.8,2.15539431]
[1763632113493,0.00048,3005.9,3005.8,12.10979531]
[1763632113696,0.00048,3005.9,3005.8,6.98939331]
[1763632114010,0.00048,3005.9,3005.8,10.31629463]
[1763632114373,0.00048,3005.9,3005.8,9.86439463]
[1763632114575,0.00048,3005.9,3005.8,10.09028963]
[1763632114775,0.00048,3005.9,3005.8,10.54218963]
[1763632115204,0.00048,3005.9,3005.8,10.66318963]
[1763632115602,0.00048,3005.9,3005.8,13.86284063]
[1763632116385,0.00048,3005.9,3005.8,14.29814977]
[1763632116600,0.00048,3005.9,3005.8,16.46817977]
[1763632116905,0.00048,3005.9,3005.8,16.16535777]
[1763632117077,0.00048,3005.9,3005.8,14.52641677]
[1763632117677,0.00048,3005.9,3005.8,18.96392077]
[1763632117978,0.00048,3005.9,3005.8,26.42717387]
[1763632118194,0.00048,3005.9,3005.8,22.80225263]
[1763632118586,0.00048,3005.9,3005.8,5.88846332]
[1763632118795,0.00048,3005.9,3005.8,6.91545596]
[1763632119205,0.46913907,3006.3,3005.9,2.593243]
[1763632119408,0.46913907,3006.3,3006.0,0.12]
[1763632119781,0.4991,3006.1,3005.9,0.90699264]
[1763632119986,0.46913907,3006.3,3006.0,0.12]
[1763632120194,0.4991,3006.1,3006.0,6.81633561]
[1763632122513,0.4991,3006.1,3006.0,4.35367261]
[1763632123389,0.4991,3006.1,3006.0,4.23367261]
[1763632123590,0.46913907,3006.3,3006.1,0.90699264]
[1763632124111,0.4991,3006.2,3006.1,0.90699264]
[1763632124488,0.00193907,3006.3,3006.2,4.23345129]
[1763632124689,0.00193907,3006.3,3006.2,4.70355129]
[1763632125082,0.00193907,3006.3,3006.2,5.53520283]
[1763632125609,0.00193907,3006.3,3006.2,6.06070683]
[1763632126229,0.50103907,3006.3,3006.2,0.90699264]
[1763632126384,0.96823907,3006.3,3006.2,1.02699264]
[1763632126580,0.00193907,3006.3,3006.2,4.35345129]
[1763632128086,0.00113907,3006.3,3006.2,4.35345129]
[1763632128594,0.00113907,3006.3,3006.2,4.23345129]
[1763632128797,0.00113907,3006.3,3006.2,4.35345129]
[1763632130820,0.50023907,3006.3,3006.2,4.35345129]
[1763632132221,0.00113907,3006.3,3006.2,4.23345129]